[Event "*** Titled Tuesday Blitz"]
[Site "Chess.com"]
[Date "2021.03.16"]
[Round "8"]
[White "ukchessbomber"]
[Black "fabianvivasz"]
[Result "1-0"]
[WhiteElo "2521"]
[BlackElo "2383"]
[TimeControl "180+1"]
[EndTime "11:30:15 PDT"]
[Termination "ukchessbomber won by checkmate"]

1. d4 {[%clk 0:02:50.6]} 1... Nf6 {[%clk 0:02:59]} 2. c4 {[%clk 0:02:51.1]} 2...
g6 {[%clk 0:02:58.5]} 3. Nc3 {[%clk 0:02:51.7]} 3... d5 {[%clk 0:02:59.3]} 4.
cxd5 {[%clk 0:02:52.5]} 4... Nxd5 {[%clk 0:03:00.2]} 5. e4 {[%clk 0:02:53.4]}
5... Nxc3 {[%clk 0:03:00]} 6. bxc3 {[%clk 0:02:54.3]} 6... Bg7 {[%clk
0:03:00.2]} 7. Be3 {[%clk 0:02:55.2]} 7... c5 {[%clk 0:03:00.3]} 8. Qd2 {[%clk
0:02:56.1]} 8... Qa5 {[%clk 0:03:00.4]} 9. Rc1 {[%clk 0:02:55.6]} 9... cxd4
{[%clk 0:03:00.6]} 10. cxd4 {[%clk 0:02:56.5]} 10... Qxd2+ {[%clk 0:03:00.8]}
11. Bxd2 {[%clk 0:02:57.4]} 11... O-O {[%clk 0:02:59.3]} 12. Be3 {[%clk
0:02:57.7]} 12... Nc6 {[%clk 0:02:44.1]} 13. d5 {[%clk 0:02:57.8]} 13... Nb4
{[%clk 0:02:40.3]} 14. a3 {[%clk 0:02:48.5]} 14... Na2 {[%clk 0:02:31.9]} 15.
Rc7 {[%clk 0:02:48.1]} 15... Be5 {[%clk 0:02:09.1]} 16. Rc2 {[%clk 0:02:46]}
16... Nc3 {[%clk 0:02:06.9]} 17. f4 {[%clk 0:02:34.2]} 17... Bg7 {[%clk
0:02:06.2]} 18. Bd3 {[%clk 0:02:35.1]} 18... Bd7 {[%clk 0:02:01.2]} 19. Nf3
{[%clk 0:02:25.5]} 19... f5 {[%clk 0:01:20.4]} 20. Ne5 {[%clk 0:01:40.7]} 20...
fxe4 {[%clk 0:00:37.5]} 21. Bc4 {[%clk 0:01:34.3]} 21... Bxe5 {[%clk 0:00:27.4]}
22. fxe5 {[%clk 0:01:35.2]} 22... Na4 {[%clk 0:00:11.7]} 23. d6+ {[%clk
0:01:28.1]} 23... e6 {[%clk 0:00:11.7]} 24. Bb3 {[%clk 0:01:25.6]} 24... Rac8
{[%clk 0:00:06.5]} 25. Rc7 {[%clk 0:01:22]} 25... Rxc7 {[%clk 0:00:05.4]} 26.
dxc7 {[%clk 0:01:22.9]} 26... Rc8 {[%clk 0:00:05.3]} 27. O-O {[%clk 0:01:20.8]}
27... Rxc7 {[%clk 0:00:05]} 28. Bh6 {[%clk 0:01:21.7]} 28... Rc8 {[%clk
0:00:03.2]} 29. Rd1 {[%clk 0:01:22.2]} 29... Nc5 {[%clk 0:00:03.1]} 30. Rxd7
{[%clk 0:01:20.5]} 30... Nxb3 {[%clk 0:00:02.7]} 31. Rg7+ {[%clk 0:01:20.2]}
31... Kh8 {[%clk 0:00:02.7]} 32. Rxb7 {[%clk 0:01:20.1]} 32... Nc5 {[%clk
0:00:01.8]} 33. Rxa7 {[%clk 0:01:19.6]} 33... Nd3 {[%clk 0:00:02.2]} 34. Bg5
{[%clk 0:01:14.1]} 34... Kg8 {[%clk 0:00:01.5]} 35. h4 {[%clk 0:01:12.3]} 35...
Nxe5 {[%clk 0:00:01.1]} 36. Bf6 {[%clk 0:01:12.7]} 36... Ng4 {[%clk 0:00:01.6]}
37. Bb2 {[%clk 0:00:56.4]} 37... Rb8 {[%clk 0:00:02.1]} 38. Bc1 {[%clk
0:00:47.9]} 38... Rc8 {[%clk 0:00:02.6]} 39. Bf4 {[%clk 0:00:44.2]} 39... Rc2
{[%clk 0:00:01.3]} 40. g3 {[%clk 0:00:31.9]} 40... e3 {[%clk 0:00:01.7]} 41. Kf1
{[%clk 0:00:23.3]} 41... e2+ {[%clk 0:00:01.8]} 42. Ke1 {[%clk 0:00:23.7]} 42...
Nh2 {[%clk 0:00:02.4]} 43. Bd2 {[%clk 0:00:17.5]} 43... Nf3+ {[%clk 0:00:02.5]}
44. Kxe2 {[%clk 0:00:18.1]} 44... Nxd2 {[%clk 0:00:02.8]} 45. Kd3 {[%clk
0:00:18.8]} 45... Ra2 {[%clk 0:00:03.1]} 46. a4 {[%clk 0:00:19.2]} 46... Nb3
{[%clk 0:00:03.1]} 47. Kc4 {[%clk 0:00:19.3]} 47... Nd2+ {[%clk 0:00:03.1]} 48.
Kc5 {[%clk 0:00:18.1]} 48... Ne4+ {[%clk 0:00:03.6]} 49. Kc6 {[%clk 0:00:18.6]}
49... Nxg3 {[%clk 0:00:04]} 50. a5 {[%clk 0:00:19.5]} 50... Nf5 {[%clk
0:00:04.4]} 51. a6 {[%clk 0:00:19.9]} 51... Nxh4 {[%clk 0:00:04.9]} 52. Ra8+
{[%clk 0:00:20.8]} 52... Kf7 {[%clk 0:00:05.2]} 53. a7 {[%clk 0:00:21.7]} 53...
Kf6 {[%clk 0:00:05.7]} 54. Rf8+ {[%clk 0:00:21.6]} 54... Kg5 {[%clk 0:00:06.1]}
55. a8=Q {[%clk 0:00:21.8]} 55... Rxa8 {[%clk 0:00:06.7]} 56. Rxa8 {[%clk
0:00:21.6]} 56... h5 {[%clk 0:00:07.1]} 57. Kd6 {[%clk 0:00:21.7]} 57... Nf5+
{[%clk 0:00:04.8]} 58. Kxe6 {[%clk 0:00:19.7]} 58... h4 {[%clk 0:00:05.4]} 59.
Ke5 {[%clk 0:00:20.3]} 59... Kg4 {[%clk 0:00:04.3]} 60. Rg8 {[%clk 0:00:17.7]}
60... Kg5 {[%clk 0:00:03.1]} 61. Ke4 {[%clk 0:00:16.9]} 61... h3 {[%clk
0:00:02.8]} 62. Kf3 {[%clk 0:00:16.6]} 62... Kh5 {[%clk 0:00:01.9]} 63. Rh8+
{[%clk 0:00:15.8]} 63... Nh6 {[%clk 0:00:02.5]} 64. Kg3 {[%clk 0:00:16.7]} 64...
g5 {[%clk 0:00:02.7]} 65. Kxh3 {[%clk 0:00:13.2]} 65... g4+ {[%clk 0:00:03.6]}
66. Kg3 {[%clk 0:00:13.8]} 66... Kg5 {[%clk 0:00:04.3]} 67. Ra8 {[%clk
0:00:14.3]} 67... Nf5+ {[%clk 0:00:04.6]} 68. Kg2 {[%clk 0:00:15]} 68... Kf4
{[%clk 0:00:05.1]} 69. Ra4+ {[%clk 0:00:15.4]} 69... Kg5 {[%clk 0:00:05.5]} 70.
Kf2 {[%clk 0:00:15.9]} 70... g3+ {[%clk 0:00:05.1]} 71. Kf3 {[%clk 0:00:16.8]}
71... Kh5 {[%clk 0:00:04.9]} 72. Rf4 {[%clk 0:00:16.3]} 72... Kg5 {[%clk
0:00:04.8]} 73. Rg4+ {[%clk 0:00:15.7]} 73... Kf6 {[%clk 0:00:05.3]} 74. Ra4
{[%clk 0:00:15.3]} 74... Kg5 {[%clk 0:00:05.5]} 75. Ra5 {[%clk 0:00:15.5]} 75...
Kg6 {[%clk 0:00:05.4]} 76. Ra6+ {[%clk 0:00:15.2]} 76... Kg5 {[%clk 0:00:05.8]}
77. Ra1 {[%clk 0:00:14.3]} 77... Kg6 {[%clk 0:00:04.4]} 78. Kg4 {[%clk
0:00:14.2]} 78... Kf6 {[%clk 0:00:02.2]} 79. Ra6+ {[%clk 0:00:11.7]} 79... Ke5
{[%clk 0:00:02.4]} 80. Ra1 {[%clk 0:00:06.7]} 80... Ke4 {[%clk 0:00:02.6]} 81.
Re1+ {[%clk 0:00:06.6]} 81... Kd3 {[%clk 0:00:02.3]} 82. Kxf5 {[%clk 0:00:05.3]}
82... g2 {[%clk 0:00:02.6]} 83. Rg1 {[%clk 0:00:05.4]} 83... Ke3 {[%clk
0:00:02.7]} 84. Rxg2 {[%clk 0:00:05.9]} 84... Kf3 {[%clk 0:00:03.4]} 85. Rg8
{[%clk 0:00:06.8]} 85... Ke3 {[%clk 0:00:04.1]} 86. Rg7 {[%clk 0:00:07.7]} 86...
Kd3 {[%clk 0:00:05]} 87. Rg6 {[%clk 0:00:08.6]} 87... Ke3 {[%clk 0:00:05.9]} 88.
Re6+ {[%clk 0:00:08.6]} 88... Kd3 {[%clk 0:00:06.8]} 89. Re4 {[%clk 0:00:09.3]}
89... Kc3 {[%clk 0:00:07.1]} 90. Ke5 {[%clk 0:00:09.8]} 90... Kd3 {[%clk
0:00:08]} 91. Kd5 {[%clk 0:00:10.7]} 91... Kc3 {[%clk 0:00:08.7]} 92. Rd4 {[%clk
0:00:11.3]} 92... Kc2 {[%clk 0:00:08.6]} 93. Kc4 {[%clk 0:00:11]} 93... Kb2
{[%clk 0:00:09]} 94. Rd2+ {[%clk 0:00:10.9]} 94... Kc1 {[%clk 0:00:09.4]} 95.
Kc3 {[%clk 0:00:10.9]} 95... Kb1 {[%clk 0:00:10.3]} 96. Re2 {[%clk 0:00:10.1]}
96... Ka1 {[%clk 0:00:10.5]} 97. Kb3 {[%clk 0:00:10.6]} 97... Kb1 {[%clk
0:00:11.4]} 98. Re1# {[%clk 0:00:11.5]} 1-0

[Event "*** Titled Tuesday Blitz"]
[Site "Chess.com"]
[Date "2021.03.16"]
[Round "8"]
[White "MrChampion_Coach"]
[Black "jacky72"]
[Result "1/2-1/2"]
[WhiteElo "2512"]
[BlackElo "2692"]
[TimeControl "180+1"]
[EndTime "11:31:08 PDT"]
[Termination "Game drawn by 50-move rule"]

1. d4 {[%clk 0:03:00.9]} 1... Nf6 {[%clk 0:03:00]} 2. Nf3 {[%clk 0:03:01.6]}
2... g6 {[%clk 0:03:00.4]} 3. Nc3 {[%clk 0:02:57.7]} 3... d5 {[%clk 0:03:00.2]}
4. Bf4 {[%clk 0:02:57.5]} 4... Bg7 {[%clk 0:03:00.5]} 5. Nb5 {[%clk 0:02:55.5]}
5... Na6 {[%clk 0:03:00]} 6. e3 {[%clk 0:02:55.4]} 6... O-O {[%clk 0:02:59.4]}
7. c4 {[%clk 0:02:53.1]} 7... c6 {[%clk 0:02:57.8]} 8. Nc3 {[%clk 0:02:52.4]}
8... Ne4 {[%clk 0:02:58.3]} 9. Be2 {[%clk 0:02:38]} 9... Qa5 {[%clk 0:02:53.2]}
10. O-O {[%clk 0:02:25.4]} 10... Nxc3 {[%clk 0:02:52.7]} 11. bxc3 {[%clk
0:02:25.3]} 11... Qxc3 {[%clk 0:02:49.5]} 12. cxd5 {[%clk 0:02:24.6]} 12... cxd5
{[%clk 0:02:50.4]} 13. Bxa6 {[%clk 0:02:19.7]} 13... bxa6 {[%clk 0:02:50.2]} 14.
Rc1 {[%clk 0:02:10]} 14... Qa3 {[%clk 0:02:46.5]} 15. Rc7 {[%clk 0:01:57.7]}
15... Re8 {[%clk 0:02:31.2]} 16. Ne5 {[%clk 0:01:51.4]} 16... Bxe5 {[%clk
0:02:19.7]} 17. Bxe5 {[%clk 0:01:47.8]} 17... Qxa2 {[%clk 0:02:19.7]} 18. Qf3
{[%clk 0:01:38.9]} 18... Bf5 {[%clk 0:02:18.1]} 19. g4 {[%clk 0:01:29.2]} 19...
Be4 {[%clk 0:02:18.2]} 20. Qf4 {[%clk 0:01:29.4]} 20... Qe2 {[%clk 0:02:10.8]}
21. f3 {[%clk 0:01:21.7]} 21... Bd3 {[%clk 0:01:52.9]} 22. Rf2 {[%clk
0:01:19.8]} 22... Qe1+ {[%clk 0:01:53.2]} 23. Kg2 {[%clk 0:01:19.9]} 23... Bf1+
{[%clk 0:00:56.5]} 24. Rxf1 {[%clk 0:01:18.3]} 24... Qh4 {[%clk 0:00:56.4]} 25.
g5 {[%clk 0:01:00.5]} 25... Qh5 {[%clk 0:00:50.3]} 26. Rb1 {[%clk 0:00:55.5]}
26... Rac8 {[%clk 0:00:38.8]} 27. Rbb7 {[%clk 0:00:50.5]} 27... Rxc7 {[%clk
0:00:39.1]} 28. Rxc7 {[%clk 0:00:50.8]} 28... Kf8 {[%clk 0:00:26.1]} 29. Rxa7
{[%clk 0:00:38.9]} 29... Rc8 {[%clk 0:00:26.3]} 30. Kg3 {[%clk 0:00:34.7]} 30...
h6 {[%clk 0:00:16.2]} 31. gxh6 {[%clk 0:00:21.8]} 31... Ke8 {[%clk 0:00:14.6]}
32. Qh4 {[%clk 0:00:11.7]} 32... Qxh4+ {[%clk 0:00:13.3]} 33. Kxh4 {[%clk
0:00:12.5]} 33... f6 {[%clk 0:00:14.2]} 34. Bxf6 {[%clk 0:00:12.7]} 34... Kf7
{[%clk 0:00:12.8]} 35. Bxe7 {[%clk 0:00:12]} 35... Ke6 {[%clk 0:00:13.7]} 36.
Bg5 {[%clk 0:00:12.6]} 36... Rc2 {[%clk 0:00:12.4]} 37. Kg3 {[%clk 0:00:12.1]}
37... Rc8 {[%clk 0:00:12.2]} 38. Re7+ {[%clk 0:00:11.4]} 38... Kf5 {[%clk
0:00:11.3]} 39. Rg7 {[%clk 0:00:12.3]} 39... Kxg5 {[%clk 0:00:11]} 40. h7 {[%clk
0:00:12.7]} 40... Rh8 {[%clk 0:00:11.4]} 41. Ra7 {[%clk 0:00:12.6]} 41... a5
{[%clk 0:00:11.6]} 42. e4 {[%clk 0:00:12.9]} 42... dxe4 {[%clk 0:00:11.6]} 43.
fxe4 {[%clk 0:00:13.8]} 43... Kf6 {[%clk 0:00:12.2]} 44. e5+ {[%clk 0:00:14]}
44... Kf5 {[%clk 0:00:12.5]} 45. Ra6 {[%clk 0:00:13.8]} 45... Rxh7 {[%clk
0:00:11]} 46. Rxa5 {[%clk 0:00:14.2]} 46... Rd7 {[%clk 0:00:10]} 47. Ra4 {[%clk
0:00:13.8]} 47... Rb7 {[%clk 0:00:08.5]} 48. Ra3 {[%clk 0:00:09.8]} 48... Ke4
{[%clk 0:00:06.5]} 49. Ra4 {[%clk 0:00:09]} 49... Kf5 {[%clk 0:00:05.4]} 50. Ra3
{[%clk 0:00:09.2]} 50... Ke4 {[%clk 0:00:05.7]} 51. Rf3 {[%clk 0:00:06.8]} 51...
Kxd4 {[%clk 0:00:05.4]} 52. e6 {[%clk 0:00:07.3]} 52... Ke5 {[%clk 0:00:05.8]}
53. Re3+ {[%clk 0:00:03.8]} 53... Kf6 {[%clk 0:00:04.9]} 54. h4 {[%clk
0:00:04.2]} 54... Ke7 {[%clk 0:00:03]} 55. Kg4 {[%clk 0:00:04.5]} 55... Rb5
{[%clk 0:00:03.4]} 56. Re4 {[%clk 0:00:03.5]} 56... Rc5 {[%clk 0:00:03.8]} 57.
Kf4 {[%clk 0:00:02.8]} 57... Rf5+ {[%clk 0:00:04.3]} 58. Kg4 {[%clk 0:00:03.2]}
58... Ra5 {[%clk 0:00:05.2]} 59. Rf4 {[%clk 0:00:03.1]} 59... Kxe6 {[%clk
0:00:05]} 60. Rf8 {[%clk 0:00:03.1]} 60... Rb5 {[%clk 0:00:05.1]} 61. Rf4 {[%clk
0:00:01.9]} 61... Rc5 {[%clk 0:00:05]} 62. Rf3 {[%clk 0:00:02.5]} 62... Ke7
{[%clk 0:00:04.8]} 63. Rf4 {[%clk 0:00:02.7]} 63... Rb5 {[%clk 0:00:05.3]} 64.
Re4+ {[%clk 0:00:03]} 64... Kf6 {[%clk 0:00:05.4]} 65. Rf4+ {[%clk 0:00:03.9]}
65... Kg7 {[%clk 0:00:06]} 66. Re4 {[%clk 0:00:04]} 66... Kh6 {[%clk 0:00:06.4]}
67. Rd4 {[%clk 0:00:04.2]} 67... Rb1 {[%clk 0:00:06.8]} 68. Rc4 {[%clk 0:00:04]}
68... Rg1+ {[%clk 0:00:07.3]} 69. Kh3 {[%clk 0:00:04.2]} 69... Rf1 {[%clk
0:00:08.1]} 70. Rc5 {[%clk 0:00:04.4]} 70... Rf4 {[%clk 0:00:07.6]} 71. Kg3
{[%clk 0:00:04.3]} 71... Ra4 {[%clk 0:00:08]} 72. Rc3 {[%clk 0:00:04.6]} 72...
Kg7 {[%clk 0:00:07.9]} 73. Rc7+ {[%clk 0:00:04.6]} 73... Kf6 {[%clk 0:00:08.3]}
74. Rc6+ {[%clk 0:00:05.5]} 74... Kf5 {[%clk 0:00:08.8]} 75. Rc5+ {[%clk
0:00:05.9]} 75... Ke6 {[%clk 0:00:09.3]} 76. Rc6+ {[%clk 0:00:06.5]} 76... Kf7
{[%clk 0:00:09.9]} 77. Rc7+ {[%clk 0:00:06.7]} 77... Kf6 {[%clk 0:00:10.5]} 78.
Kh3 {[%clk 0:00:07.1]} 78... Ra3+ {[%clk 0:00:10]} 79. Kg4 {[%clk 0:00:06.6]}
79... Ra4+ {[%clk 0:00:10.9]} 80. Kh3 {[%clk 0:00:07.2]} 80... Kf5 {[%clk
0:00:11.2]} 81. Rc5+ {[%clk 0:00:07.1]} 81... Kf4 {[%clk 0:00:11.7]} 82. Rc3
{[%clk 0:00:07.3]} 82... Ra1 {[%clk 0:00:10.3]} 83. Rc4+ {[%clk 0:00:07.4]}
83... Kf5 {[%clk 0:00:10.7]} 84. Rc5+ {[%clk 0:00:07.5]} 84... Kf6 {[%clk
0:00:11.2]} 85. Rc4 {[%clk 0:00:07.5]} 85... Rg1 {[%clk 0:00:10.1]} 86. Rf4+
{[%clk 0:00:06.3]} 86... Kg7 {[%clk 0:00:09.4]} 87. Rf3 {[%clk 0:00:06.1]} 87...
Kh6 {[%clk 0:00:09.1]} 88. Ra3 {[%clk 0:00:06]} 88... Rb1 {[%clk 0:00:09.2]} 89.
Kg4 {[%clk 0:00:06]} 89... Rb4+ {[%clk 0:00:09.2]} 90. Kg3 {[%clk 0:00:06.6]}
90... Rb5 {[%clk 0:00:10.1]} 91. Re3 {[%clk 0:00:05.6]} 91... Kg7 {[%clk
0:00:10.1]} 92. Rd3 {[%clk 0:00:06]} 92... Kf6 {[%clk 0:00:10.3]} 93. Ra3 {[%clk
0:00:06]} 93... Kf5 {[%clk 0:00:10.4]} 94. Rf3+ {[%clk 0:00:06.4]} 94... Ke6
{[%clk 0:00:10.1]} 95. Kg4 {[%clk 0:00:06.3]} 95... Ra5 {[%clk 0:00:10.3]} 96.
Rf4 {[%clk 0:00:06.3]} 96... Re5 {[%clk 0:00:10.2]} 97. Rd4 {[%clk 0:00:06.1]}
97... Kf6 {[%clk 0:00:09.8]} 98. Rd7 {[%clk 0:00:06]} 98... Re4+ {[%clk
0:00:09.2]} 99. Kg3 {[%clk 0:00:05.8]} 99... Kf5 {[%clk 0:00:08.3]} 100. Rf7+
{[%clk 0:00:05.9]} 100... Ke6 {[%clk 0:00:08.9]} 101. Rf8 {[%clk 0:00:06.4]}
101... Ra4 {[%clk 0:00:08.4]} 102. Rg8 {[%clk 0:00:06.7]} 102... Kf7 {[%clk
0:00:08.5]} 103. Rb8 {[%clk 0:00:06.4]} 103... Rc4 {[%clk 0:00:08.3]} 104. Rb7+
{[%clk 0:00:06]} 104... Kf6 {[%clk 0:00:08.7]} 105. Rb6+ {[%clk 0:00:06.3]}
105... Kg7 {[%clk 0:00:09.6]} 106. Ra6 {[%clk 0:00:06]} 106... Kh6 {[%clk
0:00:10.5]} 107. Ra5 {[%clk 0:00:06.1]} 107... Rd4 {[%clk 0:00:10.7]} 108. Kh3
{[%clk 0:00:06.2]} 108... Rd3+ {[%clk 0:00:11]} 109. Kg4 {[%clk 0:00:06.1]}
109... Rd1 {[%clk 0:00:11.9]} 1/2-1/2

[Event "*** Titled Tuesday Blitz"]
[Site "Chess.com"]
[Date "2021.03.16"]
[Round "9"]
[White "lukazz029"]
[Black "rynos0411"]
[Result "0-1"]
[WhiteElo "2255"]
[BlackElo "2512"]
[TimeControl "180+1"]
[EndTime "11:39:41 PDT"]
[Termination "rynos0411 won by resignation"]

1. d4 {[%clk 0:03:00.9]} 1... Nf6 {[%clk 0:02:58.3]} 2. c4 {[%clk 0:02:57.3]}
2... e6 {[%clk 0:02:56.7]} 3. Nc3 {[%clk 0:02:55]} 3... d5 {[%clk 0:02:52.7]} 4.
e3 {[%clk 0:02:52.3]} 4... Nbd7 {[%clk 0:02:45.8]} 5. cxd5 {[%clk 0:02:48.1]}
5... Nxd5 {[%clk 0:02:43.2]} 6. Nge2 {[%clk 0:02:47.2]} 6... c5 {[%clk
0:02:40.7]} 7. g3 {[%clk 0:02:40.4]} 7... Nxc3 {[%clk 0:02:39.7]} 8. bxc3 {[%clk
0:02:39]} 8... cxd4 {[%clk 0:02:37.9]} 9. exd4 {[%clk 0:02:35.1]} 9... Bd6
{[%clk 0:02:34.7]} 10. Bg2 {[%clk 0:02:34.8]} 10... O-O {[%clk 0:02:34.2]} 11.
O-O {[%clk 0:02:33.7]} 11... Qc7 {[%clk 0:02:30.2]} 12. Bd2 {[%clk 0:02:22.2]}
12... Rb8 {[%clk 0:02:26.3]} 13. a4 {[%clk 0:02:18.5]} 13... b6 {[%clk
0:02:24.7]} 14. Qb3 {[%clk 0:02:16]} 14... Ba6 {[%clk 0:02:24.1]} 15. Bb7 {[%clk
0:02:16.5]} 15... Bxb7 {[%clk 0:01:59.6]} 0-1

[Event "*** Titled Tuesday Blitz"]
[Site "Chess.com"]
[Date "2021.03.16"]
[Round "9"]
[White "kunaevchess"]
[Black "JordanLoyd2020"]
[Result "1-0"]
[WhiteElo "2381"]
[BlackElo "2481"]
[TimeControl "180+1"]
[EndTime "11:40:08 PDT"]
[Termination "kunaevchess won by resignation"]

1. e4 {[%clk 0:02:54.7]} 1... c5 {[%clk 0:02:58.9]} 2. Nf3 {[%clk 0:02:54.2]}
2... Nc6 {[%clk 0:02:55.3]} 3. d4 {[%clk 0:02:53.1]} 3... cxd4 {[%clk
0:02:56.2]} 4. Nxd4 {[%clk 0:02:53.7]} 4... g6 {[%clk 0:02:56.2]} 5. c4 {[%clk
0:02:52.6]} 5... Nf6 {[%clk 0:02:54.7]} 6. Nc3 {[%clk 0:02:52.2]} 6... Nxd4
{[%clk 0:02:55.2]} 7. Qxd4 {[%clk 0:02:51.7]} 7... d6 {[%clk 0:02:55.8]} 8. Be3
{[%clk 0:02:51.2]} 8... Bg7 {[%clk 0:02:56.3]} 9. Be2 {[%clk 0:02:51.6]} 9...
O-O {[%clk 0:02:56.7]} 10. Qd2 {[%clk 0:02:51.1]} 10... a5 {[%clk 0:02:56.5]}
11. f3 {[%clk 0:02:51.3]} 11... a4 {[%clk 0:02:56.3]} 12. Kf2 {[%clk 0:02:51.7]}
12... Be6 {[%clk 0:02:55.6]} 13. Rac1 {[%clk 0:02:48.1]} 13... Nd7 {[%clk
0:02:47]} 14. Rhd1 {[%clk 0:02:43.8]} 14... f5 {[%clk 0:02:44.3]} 15. exf5
{[%clk 0:02:43.8]} 15... gxf5 {[%clk 0:02:36]} 16. Kg1 {[%clk 0:02:42.2]} 16...
Rf7 {[%clk 0:02:15.7]} 17. c5 {[%clk 0:02:14.1]} 17... Nxc5 {[%clk 0:02:06]} 18.
Bxc5 {[%clk 0:02:11.4]} 1-0

[Event "*** Titled Tuesday Blitz"]
[Site "Chess.com"]
[Date "2021.03.16"]
[Round "9"]
[White "FMalexhdez"]
[Black "whogeeyao"]
[Result "0-1"]
[WhiteElo "2203"]
[BlackElo "2317"]
[TimeControl "180+1"]
[EndTime "11:40:15 PDT"]
[Termination "whogeeyao won by resignation"]

1. e4 {[%clk 0:03:00.9]} 1... c5 {[%clk 0:02:46.7]} 2. Nf3 {[%clk 0:03:00.6]}
2... e6 {[%clk 0:02:47.6]} 3. d4 {[%clk 0:03:01]} 3... cxd4 {[%clk 0:02:48.5]}
4. Nxd4 {[%clk 0:03:01.1]} 4... Nc6 {[%clk 0:02:49.4]} 5. Nc3 {[%clk 0:03:00.3]}
5... Qc7 {[%clk 0:02:50.2]} 6. g3 {[%clk 0:02:56]} 6... a6 {[%clk 0:02:49.1]} 7.
Bg2 {[%clk 0:02:55.2]} 7... Nf6 {[%clk 0:02:49.5]} 8. Nde2 {[%clk 0:02:49.1]}
8... Bc5 {[%clk 0:02:48.6]} 9. O-O {[%clk 0:02:48.9]} 9... O-O {[%clk
0:02:48.7]} 10. h3 {[%clk 0:02:48.3]} 10... b5 {[%clk 0:02:48.3]} 11. a3 {[%clk
0:02:47.8]} 11... Bb7 {[%clk 0:02:48.5]} 12. g4 {[%clk 0:02:47.2]} 12... Rfd8
{[%clk 0:02:41.1]} 13. Bf4 {[%clk 0:02:47.1]} 13... d6 {[%clk 0:02:26.3]} 14.
Ng3 {[%clk 0:02:38.7]} 14... Ne5 {[%clk 0:02:26]} 15. Qe2 {[%clk 0:02:20.6]}
15... Ng6 {[%clk 0:02:25.2]} 16. Be3 {[%clk 0:02:13.3]} 16... d5 {[%clk
0:02:23.5]} 17. exd5 {[%clk 0:02:10.6]} 17... Nxd5 {[%clk 0:02:21.7]} 18. Nxd5
{[%clk 0:02:05.7]} 18... Bxd5 {[%clk 0:02:22.6]} 19. Bxc5 {[%clk 0:01:50]} 19...
Bxg2 {[%clk 0:02:15.4]} 20. Kxg2 {[%clk 0:01:46.4]} 20... Nf4+ {[%clk
0:02:14.8]} 0-1

[Event "*** Titled Tuesday Blitz"]
[Site "Chess.com"]
[Date "2021.03.16"]
[Round "9"]
[White "Chigorinetz"]
[Black "Kurkusha"]
[Result "1-0"]
[WhiteElo "2503"]
[BlackElo "2358"]
[TimeControl "180+1"]
[EndTime "11:40:35 PDT"]
[Termination "Chigorinetz won by resignation"]

1. e4 {[%clk 0:03:00.9]} 1... e5 {[%clk 0:02:59.4]} 2. Bc4 {[%clk 0:02:59.3]}
2... Nc6 {[%clk 0:02:58.4]} 3. Nc3 {[%clk 0:02:58.4]} 3... Nf6 {[%clk
0:02:55.5]} 4. d3 {[%clk 0:02:58.2]} 4... h6 {[%clk 0:02:54.1]} 5. f4 {[%clk
0:02:57.3]} 5... Bb4 {[%clk 0:02:51.9]} 6. Nf3 {[%clk 0:02:55.9]} 6... d5 {[%clk
0:02:48.7]} 7. exd5 {[%clk 0:02:55.3]} 7... Nxd5 {[%clk 0:02:46]} 8. O-O {[%clk
0:02:38.6]} 8... Nxc3 {[%clk 0:02:41.5]} 9. bxc3 {[%clk 0:02:38]} 9... Bxc3
{[%clk 0:02:41.9]} 10. Ba3 {[%clk 0:02:31]} 10... Bxa1 {[%clk 0:02:26]} 11. Qxa1
{[%clk 0:02:26]} 11... Be6 {[%clk 0:02:12.6]} 12. Bxe6 {[%clk 0:02:00.4]} 12...
fxe6 {[%clk 0:02:13.5]} 13. Qb1 {[%clk 0:02:00.1]} 13... b6 {[%clk 0:02:00.6]}
14. Nxe5 {[%clk 0:01:43.4]} 14... Nxe5 {[%clk 0:01:53.1]} 15. Qb5+ {[%clk
0:01:42.8]} 15... Nd7 {[%clk 0:01:46.1]} 16. Qh5+ {[%clk 0:01:42.1]} 1-0

[Event "*** Titled Tuesday Blitz"]
[Site "Chess.com"]
[Date "2021.03.16"]
[Round "9"]
[White "FairChess_on_YouTube"]
[Black "Onischuk_V"]
[Result "0-1"]
[WhiteElo "2958"]
[BlackElo "2854"]
[TimeControl "180+1"]
[EndTime "11:41:34 PDT"]
[Termination "Onischuk_V won by resignation"]

1. e4 {[%clk 0:03:00.9]} 1... d6 {[%clk 0:03:00]} 2. d4 {[%clk 0:02:57]} 2...
Nf6 {[%clk 0:03:00.5]} 3. Nc3 {[%clk 0:02:56.2]} 3... g6 {[%clk 0:03:01.1]} 4.
Nf3 {[%clk 0:02:54.8]} 4... Bg7 {[%clk 0:03:01.6]} 5. h3 {[%clk 0:02:54.1]} 5...
O-O {[%clk 0:02:57.4]} 6. Be3 {[%clk 0:02:54.6]} 6... d5 {[%clk 0:02:55.3]} 7.
e5 {[%clk 0:02:52.3]} 7... Ne4 {[%clk 0:02:55.2]} 8. Bd3 {[%clk 0:02:47.3]} 8...
Nxc3 {[%clk 0:02:50.9]} 9. bxc3 {[%clk 0:02:48.2]} 9... c5 {[%clk 0:02:51.2]}
10. O-O {[%clk 0:02:48.2]} 10... c4 {[%clk 0:02:50.8]} 11. Be2 {[%clk 0:02:48]}
11... Nc6 {[%clk 0:02:50.7]} 12. Qd2 {[%clk 0:02:46.5]} 12... f6 {[%clk
0:02:50.2]} 13. exf6 {[%clk 0:02:45.6]} 13... exf6 {[%clk 0:02:50]} 14. Rfe1
{[%clk 0:02:31]} 14... Bf5 {[%clk 0:02:47.6]} 15. Nh4 {[%clk 0:02:25.6]} 15...
Be6 {[%clk 0:02:41.2]} 16. Bh6 {[%clk 0:02:11.2]} 16... Qd7 {[%clk 0:02:38]} 17.
Rab1 {[%clk 0:02:00.4]} 17... Rae8 {[%clk 0:02:33.8]} 18. Bf1 {[%clk 0:01:59.5]}
18... Bf7 {[%clk 0:02:30.3]} 19. g4 {[%clk 0:01:51.4]} 19... Rxe1 {[%clk
0:02:21.5]} 20. Rxe1 {[%clk 0:01:52.3]} 20... Re8 {[%clk 0:02:21.4]} 21. Rxe8+
{[%clk 0:01:48]} 21... Qxe8 {[%clk 0:02:21.2]} 22. Ng2 {[%clk 0:01:42]} 22...
Qf8 {[%clk 0:02:10.2]} 23. Bxg7 {[%clk 0:01:35.5]} 23... Kxg7 {[%clk 0:02:10.3]}
24. Qf4 {[%clk 0:01:32.2]} 24... Qa3 {[%clk 0:01:52.9]} 25. Qc7 {[%clk
0:01:27.2]} 25... Qxc3 {[%clk 0:01:51.5]} 26. Nf4 {[%clk 0:01:27.3]} 26... Nxd4
{[%clk 0:01:51.2]} 27. Bg2 {[%clk 0:01:20.5]} 27... Qe1+ {[%clk 0:01:49.3]} 28.
Kh2 {[%clk 0:01:17.2]} 28... Qxf2 {[%clk 0:01:45.7]} 29. Ne6+ {[%clk 0:01:13.5]}
29... Nxe6 {[%clk 0:01:44]} 0-1